bitfinex/quotes_ETHUSD_20251031
["timestamp","ask_amount","ask_price","bid_price","bid_amount"]
[1761945538381,0.4902,3856.7,3856.6,4.24896243]
[1761945538591,0.011,3856.7,3856.6,4.24896243]
[1761945539585,0.4902,3856.7,3856.6,4.24896243]
[1761945540112,0.011,3856.7,3856.6,4.274892]
[1761945541583,1e-08,3856.7,3856.6,4.809996]
[1761945542690,1e-08,3856.7,3856.6,4.37856243]
[1761945542863,0.47920001,3856.7,3856.6,3.08735752]
[1761945543068,0.97260001,3856.7,3856.6,3.08735752]
[1761945544422,0.97360001,3856.7,3856.6,3.08735752]
[1761945545713,0.97360001,3856.7,3856.6,2.59295752]
[1761945551510,0.97360001,3856.7,3856.3,0.002]
[1761945551710,0.4611,3856.4,3856.3,0.002]
[1761945552112,0.9392,3856.4,3856.3,0.002]
[1761945552626,1.34594422,3856.4,3856.3,0.002]
[1761945552814,1.48323276,3856.4,3856.3,0.002]
[1761945553609,0.86784422,3856.4,3856.3,2.59515924]
[1761945553806,0.40674422,3856.4,3856.3,2.59515924]
[1761945554741,0.86784422,3856.4,3856.3,2.59515924]
[1761945555845,0.00100001,3856.7,3856.6,2.59295752]
[1761945556225,0.94020001,3856.7,3856.6,2.59295752]
[1761945557647,0.94020001,3856.7,3856.3,0.002]
[1761945557822,0.4864,3856.4,3856.3,0.002]
[1761945558222,0.9693,3856.4,3856.3,0.002]
[1761945560455,0.9693,3856.4,3856.3,2.62109083]
[1761945560782,0.9693,3856.4,3856.3,2.59515924]
[1761945560985,0.9693,3856.4,3856.3,0.002]
[1761945561176,0.9693,3856.4,3856.3,2.59515924]
[1761945562473,0.9693,3856.4,3856.3,0.002]
[1761945562971,0.9693,3856.4,3856.3,2.59515924]
[1761945563472,0.4864,3856.4,3856.3,2.59515924]
[1761945566554,0.86500927,3856.7,3856.5,2.5929664]
[1761945566882,0.4573,3856.6,3856.5,2.5929664]
[1761945567174,0.9282,3856.6,3856.3,0.002]
[1761945567390,0.4709,3856.4,3856.3,2.59514105]
[1761945567544,0.4709,3856.4,3856.3,0.002]
[1761945567740,0.9282,3856.4,3856.3,0.002]
[1761945569545,1.06179093,3856.4,3856.3,0.002]
[1761945571075,0.9282,3856.4,3856.3,0.002]
[1761945573665,0.4709,3856.4,3856.3,2.59515924]
[1761945573849,0.40770927,3856.7,3856.3,0.002]
[1761945574047,0.86500927,3856.7,3856.4,2.59305126]
[1761945574381,0.86500927,3856.7,3856.5,2.61894116]
[1761945574684,0.4573,3856.6,3856.5,2.61894116]
[1761945574870,0.9282,3856.6,3856.5,2.61894116]
[1761945575176,0.9282,3856.6,3856.5,0.02593024]
[1761945575380,0.9282,3856.6,3856.4,2.59306882]
[1761945575546,0.4709,3856.5,3856.4,2.59306882]
[1761945577181,0.9282,3856.5,3856.4,2.59306882]
[1761945578882,0.40770927,3856.7,3856.6,2.59295752]
[1761945579069,1.33590927,3856.7,3856.6,2.59295752]
[1761945579246,0.40770927,3856.7,3856.6,2.59295752]
[1761945587696,0.00100001,3856.7,3856.6,2.59295752]
[1761945592283,0.46870001,3856.7,3856.6,2.59295752]
[1761945592483,0.95670001,3856.7,3856.6,2.59295752]
[1761945592703,0.00100001,3856.7,3856.6,2.59295752]
[1761945593190,0.46870001,3856.7,3856.6,3.11434995]
[1761945594434,0.95670001,3856.7,3856.6,0.52139243]
[1761945594730,0.46870001,3856.7,3856.6,2.59295752]
[1761945594929,0.46870001,3856.7,3856.6,2.59495752]
[1761945600367,0.95670001,3856.7,3856.6,2.59495752]
[1761945600996,0.46870001,3856.7,3856.6,2.59495752]
[1761945601201,0.00100001,3856.7,3856.6,3.13989204]
[1761945603199,0.00100001,3856.7,3856.6,3.11396247]
[1761945603602,0.46870001,3856.7,3856.6,3.11396247]
[1761945606050,0.95670001,3856.7,3856.6,3.11396247]
[1761945606251,0.95670001,3856.7,3856.6,2.59495752]
[1761945611356,0.00100001,3856.7,3856.6,2.59495752]
[1761945616148,0.00100001,3856.7,3856.6,2.62088709]
[1761945617528,0.00100001,3856.7,3856.6,3.02639109]
[1761945619380,0.00100001,3856.7,3856.6,3.13006152]
[1761945619589,0.00100001,3856.7,3856.6,4.22794222]
[1761945621057,0.00100001,3856.7,3856.6,3.69283822]
[1761945623189,0.47140001,3856.7,3856.6,3.69283822]
[1761945623355,0.93970001,3856.7,3856.6,3.69283822]
[1761945624770,0.93970001,3856.7,3856.6,2.59495752]
[1761945628364,0.93970001,3856.7,3856.6,0.002]
[1761945631702,0.93970001,3856.7,3856.6,2.59495752]
[1761945631894,0.93970001,3856.7,3856.6,0.002]
[1761945633285,0.93970001,3856.7,3856.6,2.59495752]
[1761945634169,0.93970001,3856.7,3856.6,0.002]
[1761945635909,1.1194187,3856.7,3856.6,0.002]
[1761945639111,28.32593621,3856.7,3856.6,0.002]
[1761945639314,21.69992824,3856.7,3856.6,0.002]
[1761945639500,15.65261695,3856.7,3856.6,0.002]
[1761945639706,14.97495338,3856.7,3856.6,0.002]
[1761945640078,6.45108938,3856.7,3856.6,0.002]
[1761945640286,16.01655338,3856.7,3856.6,0.002]
[1761945641222,17.26824038,3856.7,3856.6,0.002]
[1761945641390,15.97495338,3856.7,3856.6,0.002]
[1761945641596,14.23494038,3856.7,3856.6,0.002]
[1761945642221,16.06173138,3856.7,3856.6,0.002]
[1761945642418,15.54218538,3856.7,3856.6,0.002]
[1761945643316,15.08521438,3856.7,3856.6,0.002]
[1761945643520,20.88153538,3856.7,3856.6,0.002]
[1761945643917,12.81108938,3856.7,3856.6,0.002]
[1761945644122,14.82709638,3856.7,3856.6,0.002]
[1761945644328,14.85726138,3856.7,3856.6,0.002]
[1761945645452,17.10302138,3856.7,3856.6,0.002]
[1761945645593,16.86267738,3856.7,3856.6,0.002]
[1761945646101,19.45556767,3856.7,3856.6,0.002]
[1761945646297,22.68512967,3856.7,3856.6,0.002]
[1761945646498,23.82503667,3856.7,3856.6,0.002]
[1761945647200,18.86951038,3856.7,3856.6,0.002]
[1761945647408,18.65762738,3856.7,3856.6,0.002]
[1761945647730,20.91234467,3856.7,3856.6,0.002]
[1761945648309,21.38792267,3856.7,3856.6,0.002]
[1761945649446,18.59145687,3856.7,3856.6,0.002]
[1761945649754,21.18434716,3856.7,3856.6,0.002]
[1761945650359,21.73404653,3856.7,3856.6,0.002]
[1761945650539,24.64602453,3856.7,3856.6,0.002]
[1761945651260,21.82508453,3856.7,3856.6,0.002]
[1761945651666,0.4983,3856.4,3856.3,3e-05]
[1761945651839,2.6668413,3856.4,3856.3,3e-05]
[1761945652039,3.1487413,3856.4,3856.3,3e-05]
[1761945652249,3.65947964,3856.4,3856.3,3e-05]
[1761945652438,1.51687951,3856.4,3856.3,3e-05]
[1761945654559,0.40677757,3856.4,3856.3,3e-05]
[1761945654734,0.43271874,3856.4,3856.3,3e-05]
[1761945654941,0.93101874,3856.4,3856.3,3e-05]
[1761945655139,1.41291874,3856.4,3856.3,3e-05]
[1761945657285,2.20070569,3856.4,3856.3,3e-05]
[1761945659073,1.41291874,3856.4,3856.3,3e-05]
[1761945660767,1.41391874,3856.4,3856.3,3e-05]
[1761945663481,0.40777757,3856.4,3856.3,3e-05]
[1761945663855,0.40777757,3856.4,3856.3,2.59318924]
[1761945664788,0.001,3856.4,3856.3,2.59318924]
[1761945665598,0.001,3856.4,3856.3,3.11203194]
[1761945667200,0.001,3856.4,3856.3,9.0268965]
[1761945667516,0.001,3856.4,3856.3,9.9697224]
[1761945669824,0.001,3856.4,3856.3,9.4346184]
[1761945672539,0.001,3856.4,3856.3,9.8401224]
[1761945672696,0.001,3856.4,3856.3,9.9697224]
[1761945678721,0.001,3856.4,3856.3,9.8401224]
[1761945679246,0.001,3856.4,3856.3,9.4346184]
[1761945689554,1e-08,3856.8,3856.7,2.59289029]
[1761945689878,1e-08,3856.8,3856.7,9.04285885]
[1761945690768,1e-08,3856.8,3856.7,9.14676075]
[1761945690967,1e-08,3856.8,3856.7,2.69679219]
[1761945691158,1e-08,3856.8,3856.7,3.60666646]
[1761945693360,1e-08,3856.8,3856.7,9.54745992]
[1761945693560,1e-08,3856.8,3856.7,9.52153102]
[1761945694293,1e-08,3856.8,3856.7,9.92703502]
[1761945694521,1e-08,3856.8,3856.7,10.05663502]
[1761945700430,1e-08,3856.8,3856.7,11.45631502]
[1761945702417,0.001,3857.1,3857.0,2.59268861]
[1761945702742,0.001,3857.1,3857.0,5.94800852]
[1761945702907,0.001,3857.1,3857.0,6.05168164]
[1761945703111,0.001,3857.6,3857.5,2.99785655]
[1761945703321,1e-08,3857.7,3857.6,8.91265391]
[1761945703521,1e-08,3857.7,3857.6,10.33535787]
[1761945703747,1e-08,3857.7,3857.6,10.83205787]
[1761945706570,0.006,3858.7,3857.6,10.83205787]
[1761945706571,0.006,3858.7,3857.8,2.59215096]
[1761945706736,0.006,3858.7,3857.8,4.42325646]
[1761945706935,0.006,3858.7,3857.8,6.29707275]
[1761945707140,0.006,3858.7,3857.8,6.27115125]
[1761945707871,0.006,3858.7,3857.8,6.37500432]
[1761945708054,1e-08,3858.7,3858.6,2.99711753]
[1761945708373,1e-08,3858.7,3858.6,11.02525957]
[1761945708535,1e-08,3858.7,3858.6,10.99934344]
[1761945708734,1e-08,3858.7,3858.6,11.10318196]
[1761945709756,0.001,3858.9,3858.8,4.39666321]
[1761945709946,0.001,3858.9,3858.8,4.551378]
[1761945710139,0.001,3858.9,3858.8,5.9234356]
[1761945710339,0.001,3858.9,3858.8,5.89752081]
[1761945711474,0.001,3858.9,3858.8,16.38630787]
[1761945712448,1e-08,3859.3,3859.2,2.59121061]
[1761945712648,1e-08,3859.3,3859.2,8.42032219]
[1761945712842,1e-08,3859.3,3859.2,8.52321009]
[1761945713519,1e-08,3859.3,3859.2,9.92289009]
[1761945713724,1e-08,3859.3,3859.2,15.57278762]
[1761945713919,0.001,3859.9,3859.8,8.24070534]
[1761945714123,0.001,3859.9,3859.8,9.6235214]
[1761945714289,0.001,3859.9,3859.8,9.7523214]
[1761945715720,0.001,3859.9,3859.8,11.1520014]
[1761945715898,0.001,3859.9,3859.8,11.25581458]
[1761945716806,0.955,3859.9,3859.8,11.25581458]
[1761945717888,0.495,3859.9,3859.8,9.85613458]
[1761945718088,0.955,3859.9,3859.8,9.85613458]
[1761945718699,0.495,3859.9,3859.8,9.85613458]
[1761945718897,0.001,3859.9,3859.8,9.85613458]
[1761945721738,0.6846,3859.9,3859.8,9.45063058]
[1761945721938,1.1446,3859.9,3859.8,2.59080781]
[1761945724039,1.1446,3859.9,3859.2,5.24439353]
[1761945724236,0.46,3859.8,3859.2,7.83555181]
[1761945724462,0.494,3859.3,3859.2,7.83555181]
[1761945724820,0.954,3859.3,3859.2,8.32955181]
[1761945725249,0.954,3859.3,3859.2,7.83555181]
[1761945729135,0.954,3859.3,3859.2,2.59115828]
[1761945734864,0.001,3859.7,3859.6,2.59094206]
[1761945735385,0.495,3859.7,3859.6,2.61685148]
[1761945735670,0.495,3859.7,3859.6,3.92119239]
[1761945735671,0.955,3859.7,3859.6,3.92119239]
[1761945735879,0.495,3859.7,3859.6,3.92119239]
[1761945736082,0.001,3859.7,3859.6,3.92119239]
[1761945736866,0.9842,3859.7,3859.6,3.89528297]
[1761945737074,0.9842,3859.7,3859.6,2.59094206]
[1761945737589,0.4941,3859.7,3859.6,2.59094206]
[1761945737967,0.001,3859.7,3859.6,2.59094206]
[1761945738170,0.001,3859.7,3859.6,2.61685148]
[1761945738965,0.001,3859.7,3859.6,3.02235548]
[1761945739165,0.001,3859.7,3859.6,4.49604679]
[1761945739779,0.001,3859.7,3859.6,4.47013737]
[1761945742693,0.001,3859.7,3859.6,4.49604679]
[1761945744193,0.001,3859.7,3859.6,4.47013737]
[1761945748081,0.9708,3859.7,3859.6,9.1802269]
[1761945748394,0.9708,3859.7,3859.6,7.83533559]
[1761945749510,0.9708,3859.7,3859.6,2.59094206]
[1761945762318,0.9708,3859.7,3859.6,7.83533559]
[1761945763216,0.9708,3859.7,3859.6,7.83733559]
[1761945763961,0.9708,3859.7,3859.6,2.59294206]
[1761945775569,0.001,3859.7,3859.6,3.11392934]
[1761945775950,0.4545,3859.7,3859.6,3.11392934]
[1761945776154,0.9132,3859.7,3859.6,3.11392934]
[1761945777473,0.4545,3859.7,3859.6,3.11392934]
[1761945777677,0.9132,3859.7,3859.6,3.11392934]
[1761945780166,0.9132,3859.7,3859.6,2.59294206]
[1761945780477,0.9132,3859.7,3859.6,0.002]
[1761945780994,0.9132,3859.7,3859.6,2.59294206]
[1761945781358,0.9132,3859.7,3859.6,0.002]
[1761945781878,0.9132,3859.7,3859.6,2.59294206]
[1761945782885,0.9132,3859.7,3859.6,0.002]
[1761945783750,1.31957342,3859.7,3859.6,0.002]
[1761945784090,1.47089076,3859.7,3859.6,0.002]
[1761945785060,1.49683193,3859.7,3859.6,0.002]
[1761945787496,1.09045851,3859.7,3859.6,0.002]
[1761945790710,1.4968574,3859.7,3859.6,0.002]
[1761945796956,1.47091623,3859.7,3859.6,0.002]
[1761945801175,1.06451734,3859.7,3859.6,0.002]
[1761945801370,0.4635,3859.7,3859.6,0.002]
[1761945801682,0.001,3859.7,3859.6,2.59294206]
[1761945809386,0.9562,3859.7,3859.6,2.59294206]
[1761945810163,0.001,3859.7,3859.6,8.49451056]
[1761945810362,0.001,3859.7,3859.6,9.60565464]
[1761945812381,0.001,3859.7,3859.6,10.01115864]
[1761945813289,0.001,3859.7,3859.6,11.90283864]
[1761945817603,0.001,3859.9,3859.8,2.59080781]
[1761945817775,0.001,3859.9,3859.8,6.01294453]
[1761945817977,0.001,3859.9,3859.8,5.98703646]
[1761945819808,0.001,3859.9,3859.8,6.09084883]
[1761945822920,0.001,3859.9,3859.8,5.96204883]
[1761945824834,0.001,3859.9,3859.8,5.55654483]
[1761945825019,0.4652,3859.9,3859.8,4.15686483]
[1761945825219,0.001,3859.9,3859.8,4.15686483]
[1761945825403,0.001,3859.9,3859.8,4.5882769]
[1761945825800,0.001,3859.9,3859.8,4.56236883]
[1761945827050,0.001,3859.9,3859.8,4.5882769]
[1761945827249,0.001,3859.9,3859.8,4.69116883]
[1761945829955,1.1247,3859.9,3859.8,4.15686483]
[1761945830163,1.1247,3859.9,3859.8,2.59080781]
[1761945835876,1.1247,3859.9,3859.7,5.24492369]
[1761945836070,1.1247,3859.9,3859.6,2.59294182]
[1761945836071,0.96514117,3859.8,3859.6,2.59294182]
[1761945836272,0.452,3859.7,3859.6,0.002]
[1761945836473,0.9392,3859.7,3859.6,2.59294206]
[1761945837767,0.9392,3859.7,3859.6,0.002]
[1761945837973,0.9392,3859.7,3859.6,2.59294206]
[1761945838170,0.9392,3859.7,3859.6,0.002]
[1761945838372,0.96514117,3859.7,3859.6,0.002]
[1761945844292,1.06900881,3859.7,3859.6,0.002]
[1761945848492,1.04306764,3859.7,3859.6,0.002]
[1761945849332,1.8019244,3859.7,3859.6,0.002]
[1761945851392,0.9392,3859.7,3859.6,0.002]
[1761945852718,0.96514117,3859.7,3859.6,0.002]
[1761945857329,1.06900773,3859.7,3859.6,0.002]
[1761945861854,1.07000773,3859.7,3859.6,0.002]
[1761945863836,1.47642331,3859.7,3859.6,0.002]
[1761945864240,2.27861564,3859.7,3859.6,0.002]
[1761945866438,0.405504,3859.5,3859.2,0.002]
[1761945866656,12.863166,3858.9,3858.1,0.005]
[1761945866841,0.55286126,3858.8,3858.1,0.005]
[1761945867044,0.02594117,3858.7,3858.1,0.005]
[1761945867245,0.02594117,3858.7,3858.1,2.59690247]
[1761945867458,0.4615,3858.6,3858.2,2.59183152]
[1761945867763,0.02594117,3858.5,3858.3,2.59180057]
[1761945868167,0.02594117,3858.5,3858.2,2.59187786]
[1761945868464,0.55286126,3859.4,3858.2,2.59182148]
[1761945868465,0.02594117,3858.6,3858.2,2.59182148]
[1761945868838,0.4739,3858.5,3858.1,0.005]
[1761945869058,0.4739,3858.5,3858.2,2.59186509]
[1761945869432,0.48744117,3858.6,3858.3,2.59180524]
[1761945869634,0.48744117,3858.6,3858.2,2.59186577]
[1761945870966,0.4739,3858.5,3858.1,0.005]
[1761945871141,0.4739,3858.5,3858.1,2.59692244]
[1761945871345,0.9354,3858.5,3858.1,0.005]
[1761945871733,0.9354,3858.5,3858.1,2.59693712]
[1761945871936,0.4739,3858.5,3858.2,2.59186558]
[1761945872156,0.40651066,3858.7,3858.3,2.59180766]
[1761945872344,0.40651066,3858.7,3858.2,2.59185824]
[1761945872735,0.86801066,3858.7,3858.2,2.59185824]
[1761945873953,0.40651066,3858.7,3858.2,2.59185824]
[1761945874156,0.86801066,3858.7,3858.2,2.59185824]
[1761945875276,0.86801066,3858.7,3858.4,2.59372661]
[1761945875277,0.40651066,3858.7,3858.4,2.59372661]
[1761945876476,0.40651066,3858.7,3858.4,0.002]
[1761945877654,0.86801066,3858.7,3858.4,0.002]
[1761945878582,0.40651066,3858.7,3858.4,0.002]
[1761945879187,0.40651066,3858.7,3858.4,2.59374058]
[1761945880068,0.40651066,3858.7,3858.4,0.002]
[1761945880485,0.40651066,3858.7,3858.4,2.59373776]
[1761945881608,0.40651066,3858.7,3858.4,1.04814569]
[1761945881755,0.40651066,3858.7,3858.5,2.59164121]
[1761945882116,0.6486,3859.2,3858.5,2.59164121]
[1761945882585,0.1871,3859.2,3858.4,0.02791747]
[1761945882788,0.02594117,3859.1,3858.6,2.59161353]
[1761945883003,0.80319233,3859.7,3858.8,2.59146929]
[1761945883004,0.48744117,3859.6,3858.8,2.59146929]
[1761945884178,0.48744117,3859.6,3858.7,2.59152555]
[1761945884384,0.48744117,3859.6,3858.8,2.59147447]
[1761945884593,1.24597148,3859.6,3858.8,2.59147447]
[1761945884885,0.86794985,3859.5,3858.6,2.59159361]
[1761945885089,0.02594117,3859.4,3858.9,2.59136294]
[1761945885388,0.4615,3859.4,3858.9,2.59136294]
[1761945885557,0.4615,3859.4,3858.8,2.59145179]
[1761945888096,0.4615,3859.4,3858.9,2.59139519]
[1761945888392,0.02594117,3859.3,3858.8,2.5914764]
[1761945888771,0.4935,3859.2,3858.9,2.59139422]
[1761945888995,0.02594117,3859.1,3858.8,2.59145273]
[1761945889689,0.02594117,3859.1,3858.8,3.11235158]
[1761945889892,0.001,3859.7,3859.1,0.405504]
[1761945890088,0.001,3859.7,3859.2,2.59120453]
[1761945890289,0.001,3859.7,3859.0,5.24492369]
[1761945890856,0.001,3859.7,3859.5,2.59095698]
[1761945891293,0.001,3859.7,3859.3,2.59112154]
[1761945891706,0.001,3859.7,3859.5,2.59094887]
[1761945892396,0.001,3859.7,3859.0,5.24492369]
[1761945892599,0.001,3859.7,3859.0,5.82150594]
[1761945893071,0.001,3859.7,3859.3,2.59109613]
[1761945893272,0.4945,3859.7,3859.4,2.59107051]
[1761945893477,0.02594117,3859.6,3859.4,2.59107051]
[1761945894795,0.02594117,3859.6,3859.5,2.59100919]
[1761945895768,0.02694117,3859.7,3859.6,2.59094206]
[1761945896797,0.001,3859.7,3859.5,2.5909878]
[1761945896998,0.001,3859.7,3859.6,2.59094206]
[1761945900262,0.478,3859.7,3859.6,2.59094206]
[1761945901825,0.9715,3859.7,3858.9,5.90213822]
[1761945902124,0.477,3859.0,3858.4,0.002]
[1761945902325,0.51944117,3859.6,3858.4,0.002]
[1761945902326,0.68824117,3858.9,3858.4,0.002]
[1761945902526,0.6623,3858.9,3858.4,0.002]
[1761945902705,1.1558,3858.9,3858.4,0.002]
[1761945904400,1.56229956,3858.9,3858.4,0.002]
[1761945904595,1.58824073,3858.9,3858.4,0.002]
[1761945905004,1.7470648,3858.9,3858.4,0.002]
[1761945905609,9.9980748,3858.9,3858.4,0.002]
[1761945905812,9.67363363,3858.9,3858.4,0.002]
[1761945906607,10.27810363,3858.9,3858.4,0.002]
[1761945907009,11.67778363,3858.9,3858.4,0.002]
[1761945907195,15.22546605,3858.9,3858.4,0.002]
[1761945907607,26.41632205,3858.9,3858.4,0.002]
[1761945907807,24.97861005,3858.9,3858.4,0.002]
[1761945908734,27.97568805,3858.9,3858.4,0.002]
[1761945909547,15.64115605,3858.9,3858.4,0.002]
[1761945909847,18.31799961,3858.9,3858.4,0.002]
[1761945910646,23.05347561,3858.9,3858.4,0.002]
[1761945911444,22.72597961,3858.9,3858.4,0.002]
[1761945911607,6.66881861,3858.9,3858.4,0.002]
[1761945911808,23.94986261,3858.9,3858.4,0.002]
[1761945912647,31.90079761,3858.9,3858.4,0.002]
[1761945913147,35.83060761,3858.9,3858.4,0.002]
[1761945913650,31.02843661,3858.9,3858.4,0.002]
[1761945913849,30.59925061,3858.9,3858.4,0.002]
[1761945914147,29.77651461,3858.9,3858.4,0.002]
[1761945914349,20.24703161,3858.9,3858.4,0.002]
[1761945914581,8.08212363,3858.9,3858.4,0.002]
[1761945914777,12.35869263,3858.9,3858.4,0.002]
[1761945914921,8.08212363,3858.9,3858.4,0.002]
[1761945915421,10.61877563,3858.9,3858.4,0.002]
[1761945915844,26.30692369,3858.9,3858.4,0.002]
[1761945916030,19.91646063,3858.9,3858.4,0.002]
[1761945916448,23.90755269,3858.9,3858.4,0.002]
[1761945916767,43.02800643,3858.9,3858.4,0.002]
[1761945917958,43.71563009,3858.9,3858.4,0.002]
[1761945918574,43.02800643,3858.9,3858.4,0.002]
[1761945919450,28.3836367,3858.5,3858.4,0.002]
[1761945919765,31.56956866,3858.5,3858.4,0.002]
[1761945919964,39.32749366,3858.5,3858.4,0.002]
[1761945920172,38.73412767,3858.5,3858.4,0.002]
[1761945920977,42.20582367,3858.5,3858.4,0.002]
[1761945921177,44.56829342,3858.5,3858.4,0.002]
[1761945924783,50.92629342,3858.5,3858.4,0.002]
[1761945924985,20.92629342,3858.5,3858.4,0.002]
[1761945925190,50.92629342,3858.5,3858.4,0.002]
[1761945926461,33.7347832,3858.5,3858.4,0.002]
[1761945927289,45.0241552,3858.5,3858.4,0.002]
[1761945927811,2.99738622,3858.2,3858.1,0.005]
[1761945928097,42.03166221,3858.2,3858.1,0.005]
[1761945928254,41.79939118,3858.2,3858.1,0.005]
[1761945928591,42.48562104,3858.2,3858.1,0.005]
[1761945928969,41.79939118,3858.2,3858.1,0.005]
[1761945929169,44.320685,3858.2,3858.1,0.005]
[1761945929369,50.676685,3858.2,3858.1,0.005]
[1761945929964,51.58747959,3858.2,3858.1,0.005]
[1761945931085,21.58747959,3858.2,3858.1,0.005]
[1761945931257,50.676685,3858.2,3858.1,0.005]
[1761945931664,53.411685,3858.2,3858.1,0.005]
[1761945931980,61.411685,3858.2,3858.1,0.005]
[1761945933454,62.77264427,3858.2,3858.1,0.005]
[1761945933658,26.63711216,3857.7,3857.6,0.002]
[1761945933900,37.48664075,3857.7,3857.6,0.002]
[1761945934106,37.96654075,3857.7,3857.6,0.002]
[1761945934306,26.78716623,3857.7,3857.6,0.002]
[1761945935388,30.25670023,3857.7,3857.6,0.002]
[1761945935601,30.00933823,3857.7,3857.6,0.002]
[1761945936428,29.80746392,3857.7,3857.6,0.002]
[1761945937510,30.35457492,3857.7,3857.6,0.002]
[1761945937900,30.76145002,3857.7,3857.6,0.002]
[1761945938299,32.46175544,3857.7,3857.6,0.002]
[1761945939209,29.65138028,3857.7,3857.6,0.002]
[1761945939409,12.67188928,3857.7,3857.6,0.002]
[1761945939748,12.43648628,3857.7,3857.6,0.002]
[1761945940040,9.82497474,3857.7,3857.6,0.002]
[1761945940394,13.2644969,3857.7,3857.6,0.002]
[1761945941136,10.67227874,3857.7,3857.6,0.002]
[1761945941338,6.89828674,3857.7,3857.6,0.002]
[1761945941544,9.82497474,3857.7,3857.6,0.002]
[1761945941710,14.1265195,3857.7,3857.6,0.002]
[1761945942635,13.6044505,3857.7,3857.6,0.002]
[1761945942831,14.01114879,3857.7,3857.6,0.002]
[1761945943224,14.69890477,3857.7,3857.6,0.002]
[1761945943526,16.75441677,3857.7,3857.6,0.002]
[1761945943931,24.75441677,3857.7,3857.6,0.002]
[1761945944412,25.47174277,3857.7,3857.6,0.002]
[1761945944734,20.46160161,3857.7,3857.6,0.002]
[1761945945312,19.77384563,3857.7,3857.6,0.002]
[1761945945511,21.91309163,3857.7,3857.6,0.002]
[1761945945750,24.50530979,3857.7,3857.6,0.002]
[1761945946127,24.12428279,3857.7,3857.6,0.002]
[1761945946341,21.53206463,3857.7,3857.6,0.002]
[1761945946535,24.51277879,3857.7,3857.6,0.002]
[1761945946740,23.76563279,3857.7,3857.6,0.002]
[1761945947550,25.56980479,3857.7,3857.6,0.002]
[1761945947739,25.05380179,3857.7,3857.6,0.002]
[1761945948051,20.41955063,3857.7,3857.6,0.002]
[1761945948358,23.01176879,3857.7,3857.6,0.002]
[1761945948561,25.11531179,3857.7,3857.6,0.002]
[1761945949044,24.25145679,3857.7,3857.6,0.002]
[1761945949428,24.25380508,3857.7,3857.6,0.002]
[1761945949629,26.63808508,3857.7,3857.6,0.002]
[1761945949827,8.95833332,3857.7,3857.6,0.002]
[1761945950026,13.17094632,3857.7,3857.6,0.002]
[1761945950250,13.63244632,3857.7,3857.6,0.002]
[1761945950452,4.64865132,3857.7,3857.6,0.002]
[1761945950668,8.61953249,3857.7,3857.6,0.002]
[1761945950871,10.12253402,3857.7,3857.6,0.002]
[1761945951482,9.19543402,3857.7,3857.6,0.002]
[1761945951668,10.78925002,3857.7,3857.6,0.002]
[1761945952733,13.52396502,3857.7,3857.6,0.002]
[1761945953156,16.57768318,3857.7,3857.6,0.002]
[1761945953334,19.5380569,3857.7,3857.6,0.002]
[1761945953736,28.13249518,3857.7,3857.6,0.002]
[1761945954266,15.86065318,3857.7,3857.6,0.002]
[1761945954460,16.08485191,3857.7,3857.6,0.002]
[1761945954624,18.87895391,3857.7,3857.6,0.002]
[1761945954945,19.34455391,3857.7,3857.6,0.002]
[1761945955755,20.93352291,3857.7,3857.6,0.002]
[1761945956138,16.80510691,3857.7,3857.6,0.002]
[1761945956753,16.90628891,3857.7,3857.6,0.002]
[1761945956946,9.59772991,3857.7,3857.6,0.002]
[1761945957142,9.77035602,3857.7,3857.6,0.002]
[1761945957349,8.37067602,3857.7,3857.6,0.002]
[1761945957522,7.30733332,3857.7,3857.6,0.002]
[1761945957960,6.75569829,3857.7,3857.6,0.002]
[1761945958624,0.40669829,3857.7,3857.6,7.84712455]
[1761945958824,0.001,3858.0,3857.9,2.59208377]
[1761945959033,0.001,3858.0,3857.9,7.84492297]
[1761945961361,0.001,3858.0,3857.9,13.09776217]
[1761945965666,0.001,3858.0,3857.9,7.84492297]
[1761945966841,0.001,3858.0,3857.9,2.59208377]
[1761945967436,0.001,3858.0,3857.9,3.74038755]
[1761945973377,0.001,3858.0,3857.9,3.76630838]
[1761945975924,0.001,3858.0,3857.9,3.74038755]
[1761945977414,0.001,3858.0,3857.9,3.76630838]
[1761945979696,0.001,3858.0,3857.9,3.76830838]
[1761945998157,0.001,3858.0,3857.9,3.74238755]
[1761945998343,0.001,3858.0,3857.9,2.59408377]
[1761945998670,0.001,3858.0,3857.9,2.6200046]
[1761946003429,0.001,3858.0,3857.9,2.59408377]
[1761946003635,0.9491,3858.0,3857.9,2.59408377]
[1761946004336,0.4581,3858.0,3857.9,2.59408377]
[1761946004538,0.9491,3858.0,3857.9,2.59408377]
[1761946007136,0.001,3858.0,3857.9,2.59408377]
[1761946007640,0.4961,3858.0,3857.9,2.59408377]
[1761946008249,0.4783,3858.0,3857.9,2.59408377]
[1761946008575,0.001,3858.0,3857.9,2.59408377]
[1761946008957,0.4961,3858.0,3857.9,2.59408377]
[1761946009365,0.001,3858.0,3857.9,2.59408377]
[1761946010682,0.4961,3858.0,3857.9,2.59408377]
[1761946011077,0.9734,3858.0,3857.9,2.59408377]
[1761946014481,0.9734,3858.0,3857.9,0.002]
[1761946014792,0.9734,3858.0,3857.9,2.59408377]
[1761946017761,0.9734,3858.0,3857.9,7.84692297]
[1761946018768,0.4961,3858.0,3857.9,7.84692297]
[1761946018964,0.9734,3858.0,3857.9,7.84692297]
[1761946019501,0.9734,3858.0,3857.9,2.59408377]
[1761946019790,0.4961,3858.0,3857.9,2.59408377]
[1761946020357,0.9734,3858.0,3857.9,2.59408377]
[1761946022179,0.4961,3858.0,3857.9,2.59408377]
[1761946022595,0.9734,3858.0,3857.9,2.59408377]
[1761946023089,0.001,3858.0,3857.9,2.59408377]